[Event "*** SCC Grand Prix: Titled Tuesday Blitz"]
[Site "Chess.com"]
[Date "2020.08.25"]
[Round "10"]
[White "hellokostya"]
[Black "IvanSoriano1"]
[Result "0-1"]
[WhiteElo "2465"]
[BlackElo "2583"]
[TimeControl "180+1"]
[EndTime "11:58:44 PDT"]
[Termination "IvanSoriano1 won on time"]

1. d4 {[%clk 0:03:00.9]} 1... Nf6 {[%clk 0:02:59.8]} 2. c4 {[%clk 0:02:59.1]}
2... e6 {[%clk 0:02:59.9]} 3. Nf3 {[%clk 0:02:57.2]} 3... d5 {[%clk 0:02:59.9]}
4. Nc3 {[%clk 0:02:56.6]} 4... c6 {[%clk 0:02:58.9]} 5. e3 {[%clk 0:02:51.6]}
5... Nbd7 {[%clk 0:02:58.3]} 6. b3 {[%clk 0:02:51.1]} 6... Be7 {[%clk
0:02:58.3]} 7. Bb2 {[%clk 0:02:50.5]} 7... O-O {[%clk 0:02:58.4]} 8. Bd3 {[%clk
0:02:50.5]} 8... b6 {[%clk 0:02:58.2]} 9. O-O {[%clk 0:02:50.4]} 9... Bb7 {[%clk
0:02:58.7]} 10. Qc2 {[%clk 0:02:45.6]} 10... h6 {[%clk 0:02:56.6]} 11. Rad1
{[%clk 0:02:37.9]} 11... Rc8 {[%clk 0:02:55.7]} 12. e4 {[%clk 0:02:30.7]} 12...
dxe4 {[%clk 0:02:54.7]} 13. Nxe4 {[%clk 0:02:30.7]} 13... Nxe4 {[%clk
0:02:54.7]} 14. Bxe4 {[%clk 0:02:31.6]} 14... Qc7 {[%clk 0:02:46.2]} 15. Rfe1
{[%clk 0:02:22.5]} 15... Nf6 {[%clk 0:02:44.9]} 16. Bd3 {[%clk 0:02:16.1]} 16...
c5 {[%clk 0:02:43.6]} 17. dxc5 {[%clk 0:01:49.5]} 17... Bxf3 {[%clk 0:02:42.7]}
18. gxf3 {[%clk 0:01:43.8]} 18... Qxc5 {[%clk 0:02:41.8]} 19. Re5 {[%clk
0:01:29.8]} 19... Qc6 {[%clk 0:02:38.3]} 20. Kg2 {[%clk 0:01:29.6]} 20... Rfd8
{[%clk 0:02:36.1]} 21. Be2 {[%clk 0:01:28]} 21... Bd6 {[%clk 0:02:34.5]} 22. Re3
{[%clk 0:01:25.4]} 22... Nh5 {[%clk 0:02:33.6]} 23. Qe4 {[%clk 0:01:17.7]} 23...
Nf4+ {[%clk 0:02:30.6]} 24. Kf1 {[%clk 0:01:14.2]} 24... Nxe2 {[%clk 0:02:27.9]}
25. Qxc6 {[%clk 0:01:09.5]} 25... Rxc6 {[%clk 0:02:28.8]} 26. Kxe2 {[%clk
0:01:06.8]} 26... Rcc8 {[%clk 0:02:27.1]} 27. Red3 {[%clk 0:01:06]} 27... Be7
{[%clk 0:02:26.2]} 28. Rxd8+ {[%clk 0:01:04.3]} 28... Rxd8 {[%clk 0:02:27.1]}
29. Rxd8+ {[%clk 0:01:03.4]} 29... Bxd8 {[%clk 0:02:28]} 30. b4 {[%clk
0:00:51.9]} 30... Be7 {[%clk 0:02:26.4]} 31. a3 {[%clk 0:00:51.4]} 31... Kf8
{[%clk 0:02:01.2]} 32. Kd3 {[%clk 0:00:46.6]} 32... g6 {[%clk 0:01:58.3]} 33.
Bd4 {[%clk 0:00:43.3]} 33... Ke8 {[%clk 0:01:58.1]} 34. Be3 {[%clk 0:00:41.2]}
34... h5 {[%clk 0:01:54.9]} 35. c5 {[%clk 0:00:30.5]} 35... bxc5 {[%clk
0:01:55.8]} 36. b5 {[%clk 0:00:22.6]} 36... Kd7 {[%clk 0:01:51.1]} 37. Kc4
{[%clk 0:00:22.3]} 37... Bd6 {[%clk 0:01:40]} 38. h3 {[%clk 0:00:20]} 38... f5
{[%clk 0:01:32.8]} 39. Bxc5 {[%clk 0:00:19.9]} 39... Bxc5 {[%clk 0:01:31.5]} 40.
Kxc5 {[%clk 0:00:20.8]} 40... g5 {[%clk 0:01:32.1]} 41. Kd4 {[%clk 0:00:13.6]}
41... Kd6 {[%clk 0:01:31.9]} 42. a4 {[%clk 0:00:13.4]} 42... e5+ {[%clk
0:01:31.6]} 43. Ke3 {[%clk 0:00:10.4]} 43... Kc5 {[%clk 0:01:30.8]} 44. Kd3
{[%clk 0:00:02.6]} 44... Kb4 {[%clk 0:01:30.8]} 0-1

[Event "*** SCC Grand Prix: Titled Tuesday Blitz"]
[Site "Chess.com"]
[Date "2020.08.25"]
[Round "10"]
[White "QuintilianoR"]
[Black "eightbyeightchess"]
[Result "1-0"]
[WhiteElo "2614"]
[BlackElo "2452"]
[TimeControl "180+1"]
[EndTime "11:58:45 PDT"]
[Termination "QuintilianoR won by resignation"]

1. d4 {[%clk 0:03:00.9]} 1... d5 {[%clk 0:02:59.8]} 2. c4 {[%clk 0:03:00.8]}
2... c6 {[%clk 0:02:59.8]} 3. Nc3 {[%clk 0:03:00.8]} 3... Nf6 {[%clk 0:03:00]}
4. cxd5 {[%clk 0:03:01.2]} 4... cxd5 {[%clk 0:02:58.7]} 5. Bf4 {[%clk
0:03:00.9]} 5... Nc6 {[%clk 0:02:59.3]} 6. e3 {[%clk 0:03:00.8]} 6... e6 {[%clk
0:02:54.4]} 7. h3 {[%clk 0:02:59]} 7... Bd6 {[%clk 0:02:54.7]} 8. Bxd6 {[%clk
0:02:58.9]} 8... Qxd6 {[%clk 0:02:55.6]} 9. f4 {[%clk 0:02:59.3]} 9... O-O
{[%clk 0:02:55.9]} 10. Bd3 {[%clk 0:02:58.5]} 10... a6 {[%clk 0:02:56.2]} 11.
Nf3 {[%clk 0:02:58.5]} 11... b5 {[%clk 0:02:56.4]} 12. O-O {[%clk 0:02:58.6]}
12... b4 {[%clk 0:02:56.6]} 13. Na4 {[%clk 0:02:44.4]} 13... Ne4 {[%clk
0:02:53.8]} 14. Rc1 {[%clk 0:02:43.4]} 14... Bd7 {[%clk 0:02:49.8]} 15. Nb6
{[%clk 0:02:31.5]} 15... Ra7 {[%clk 0:02:40.1]} 16. Nxd7 {[%clk 0:02:30.7]}
16... Qxd7 {[%clk 0:02:37.7]} 17. Qc2 {[%clk 0:02:27]} 17... Na5 {[%clk
0:02:26]} 18. Bxe4 {[%clk 0:02:07.6]} 18... dxe4 {[%clk 0:02:26.9]} 19. Qxe4
{[%clk 0:02:01.9]} 19... Qa4 {[%clk 0:02:26.5]} 20. b3 {[%clk 0:01:43.4]} 20...
Qb5 {[%clk 0:02:11.8]} 21. Rc5 {[%clk 0:01:38.2]} 21... Qb6 {[%clk 0:02:12.1]}
22. Ng5 {[%clk 0:01:24.3]} 22... g6 {[%clk 0:02:11.8]} 23. Rfc1 {[%clk
0:01:23.2]} 23... Nb7 {[%clk 0:02:09.2]} 24. Rc6 {[%clk 0:01:21.3]} 24... Qd8
{[%clk 0:02:06]} 25. Nxe6 {[%clk 0:00:39.1]} 25... fxe6 {[%clk 0:01:44.9]} 26.
Qxe6+ {[%clk 0:00:38]} 26... Kg7 {[%clk 0:01:07.2]} 27. Rc7+ {[%clk 0:00:37.4]}
27... Kh6 {[%clk 0:01:07.1]} 28. g4 {[%clk 0:00:35.3]} 28... Rf5 {[%clk
0:00:52.3]} 29. gxf5 {[%clk 0:00:22.8]} 29... Qh4 {[%clk 0:00:52.4]} 30. Rxh7+
{[%clk 0:00:16.9]} 30... Kxh7 {[%clk 0:00:53.3]} 31. Qf7+ {[%clk 0:00:16.7]}
31... Kh8 {[%clk 0:00:51.4]} 32. Qf8+ {[%clk 0:00:16.9]} 32... Kh7 {[%clk
0:00:51.5]} 33. Rc7+ {[%clk 0:00:17.2]} 1-0

[Event "*** SCC Grand Prix: Titled Tuesday Blitz"]
[Site "Chess.com"]
[Date "2020.08.25"]
[Round "10"]
[White "aNaartjieZA"]
[Black "arminmusovic"]
[Result "0-1"]
[WhiteElo "2464"]
[BlackElo "2583"]
[TimeControl "180+1"]
[EndTime "11:58:46 PDT"]
[Termination "arminmusovic won by resignation"]

1. e4 {[%clk 0:03:00.9]} 1... c6 {[%clk 0:02:59.5]} 2. d3 {[%clk 0:03:00.8]}
2... d5 {[%clk 0:03:00.4]} 3. Nd2 {[%clk 0:03:01.5]} 3... e6 {[%clk 0:03:00.2]}
4. Ngf3 {[%clk 0:03:01.9]} 4... c5 {[%clk 0:03:00.1]} 5. g3 {[%clk 0:03:02.2]}
5... Nc6 {[%clk 0:03:00.3]} 6. Bg2 {[%clk 0:03:02.8]} 6... Nf6 {[%clk
0:03:00.9]} 7. O-O {[%clk 0:03:03]} 7... Be7 {[%clk 0:03:01.4]} 8. Re1 {[%clk
0:03:03.4]} 8... O-O {[%clk 0:03:01.5]} 9. e5 {[%clk 0:03:03.6]} 9... Nd7 {[%clk
0:03:01.5]} 10. Nf1 {[%clk 0:03:04.2]} 10... b5 {[%clk 0:03:00.7]} 11. h4 {[%clk
0:03:04.2]} 11... Bb7 {[%clk 0:03:00.2]} 12. N1h2 {[%clk 0:03:04.3]} 12... Re8
{[%clk 0:03:00.6]} 13. Bf4 {[%clk 0:03:04.4]} 13... Nf8 {[%clk 0:03:00.4]} 14.
h5 {[%clk 0:03:04.5]} 14... a5 {[%clk 0:02:49.4]} 15. Ng4 {[%clk 0:03:00.9]}
15... b4 {[%clk 0:02:41.8]} 16. Qd2 {[%clk 0:02:58.2]} 16... Nd4 {[%clk
0:02:34.5]} 17. Nxd4 {[%clk 0:02:42.2]} 17... cxd4 {[%clk 0:02:35.4]} 18. h6
{[%clk 0:02:40.9]} 18... g5 {[%clk 0:02:18.8]} 19. Bxg5 {[%clk 0:02:13.4]} 19...
Bxg5 {[%clk 0:02:18.4]} 20. f4 {[%clk 0:02:13.6]} 20... Be7 {[%clk 0:01:57.5]}
21. Qe2 {[%clk 0:02:05.5]} 21... Rc8 {[%clk 0:01:46.6]} 22. Rf1 {[%clk
0:02:05.3]} 22... f5 {[%clk 0:01:27.6]} 23. Nf2 {[%clk 0:01:45.9]} 23... Ng6
{[%clk 0:01:22]} 24. Nh3 {[%clk 0:01:42.6]} 24... Rc7 {[%clk 0:01:10.6]} 25. g4
{[%clk 0:01:41.5]} 25... Rf8 {[%clk 0:01:05.6]} 26. Rf2 {[%clk 0:01:37.8]} 26...
Bh4 {[%clk 0:00:56.6]} 27. Rff1 {[%clk 0:01:37.8]} 27... Rcf7 {[%clk 0:00:49.5]}
28. g5 {[%clk 0:01:37.8]} 28... Qb6 {[%clk 0:00:44.4]} 29. Kh1 {[%clk
0:01:27.6]} 29... Rc8 {[%clk 0:00:43.9]} 30. Rac1 {[%clk 0:01:24.2]} 30... Rfc7
{[%clk 0:00:44]} 31. Ng1 {[%clk 0:01:15.1]} 31... a4 {[%clk 0:00:42.9]} 32. Qh5
{[%clk 0:01:00.6]} 32... b3 {[%clk 0:00:41.7]} 33. axb3 {[%clk 0:00:59.9]} 33...
axb3 {[%clk 0:00:41.6]} 34. Nf3 {[%clk 0:00:59.6]} 34... Bg3 {[%clk 0:00:38]}
35. Nd2 {[%clk 0:00:51]} 35... Rxc2 {[%clk 0:00:33.9]} 0-1

[Event "*** SCC Grand Prix: Titled Tuesday Blitz"]
[Site "Chess.com"]
[Date "2020.08.25"]
[Round "10"]
[White "checkitas"]
[Black "Barmen_EV"]
[Result "1-0"]
[WhiteElo "2400"]
[BlackElo "2443"]
[TimeControl "180+1"]
[EndTime "11:58:54 PDT"]
[Termination "checkitas won on time"]

1. d4 {[%clk 0:02:58.6]} 1... d5 {[%clk 0:02:57.5]} 2. c4 {[%clk 0:02:58.2]}
2... e6 {[%clk 0:02:21.6]} 3. Nf3 {[%clk 0:02:55.3]} 3... Nf6 {[%clk 0:02:20.9]}
4. g3 {[%clk 0:02:52.8]} 4... dxc4 {[%clk 0:02:20.3]} 5. Bg2 {[%clk 0:02:52.6]}
5... Nc6 {[%clk 0:02:21.2]} 6. Qa4 {[%clk 0:02:47.4]} 6... Bb4+ {[%clk
0:02:20.2]} 7. Bd2 {[%clk 0:02:46.4]} 7... Nd5 {[%clk 0:02:21.1]} 8. Qb5 {[%clk
0:02:44.1]} 8... Bxd2+ {[%clk 0:02:18.7]} 9. Nbxd2 {[%clk 0:02:43.5]} 9... c3
{[%clk 0:02:19.6]} 10. bxc3 {[%clk 0:02:42.7]} 10... Nxc3 {[%clk 0:02:20.5]} 11.
Qb3 {[%clk 0:02:42.8]} 11... Nd5 {[%clk 0:02:21.4]} 12. O-O {[%clk 0:02:42.7]}
12... O-O {[%clk 0:02:21.2]} 13. Rac1 {[%clk 0:02:43]} 13... Nde7 {[%clk
0:02:22.1]} 14. e3 {[%clk 0:02:36.9]} 14... Rb8 {[%clk 0:02:20.9]} 15. Rfd1
{[%clk 0:02:35]} 15... b6 {[%clk 0:02:21]} 16. Ng5 {[%clk 0:02:28.4]} 16... Bb7
{[%clk 0:02:19.6]} 17. Qb1 {[%clk 0:02:27.1]} 17... g6 {[%clk 0:02:15.8]} 18. h4
{[%clk 0:02:26.2]} 18... a5 {[%clk 0:02:11.1]} 19. h5 {[%clk 0:02:22.4]} 19...
Nb4 {[%clk 0:02:09.2]} 20. hxg6 {[%clk 0:02:17.9]} 20... hxg6 {[%clk 0:02:07.1]}
21. a3 {[%clk 0:02:11.7]} 21... Bxg2 {[%clk 0:02:03.5]} 22. Kxg2 {[%clk
0:02:12.6]} 22... Qd5+ {[%clk 0:02:03.6]} 23. Ngf3 {[%clk 0:02:07.8]} 23... Nbc6
{[%clk 0:01:54.9]} 24. Rh1 {[%clk 0:02:01.8]} 24... Kg7 {[%clk 0:01:53.7]} 25.
e4 {[%clk 0:01:58.5]} 25... Qd7 {[%clk 0:01:51.7]} 26. Qb2 {[%clk 0:01:53.4]}
26... f6 {[%clk 0:01:47.4]} 27. Nc4 {[%clk 0:01:38.9]} 27... Rh8 {[%clk
0:01:40.5]} 28. Ne3 {[%clk 0:01:38.2]} 28... Nd8 {[%clk 0:01:11.2]} 29. d5
{[%clk 0:01:32]} 29... Nf7 {[%clk 0:01:06.7]} 30. Ng4 {[%clk 0:01:26.1]} 30...
e5 {[%clk 0:00:45.8]} 31. Ngxe5 {[%clk 0:01:24.4]} 31... fxe5 {[%clk 0:00:21.1]}
32. Nxe5 {[%clk 0:01:25.3]} 32... Qe8 {[%clk 0:00:21.3]} 33. Nd7+ {[%clk
0:01:12.6]} 33... Kg8 {[%clk 0:00:11.7]} 34. Nf6+ {[%clk 0:01:08.8]} 1-0

[Event "*** SCC Grand Prix: Titled Tuesday Blitz"]
[Site "Chess.com"]
[Date "2020.08.25"]
[Round "10"]
[White "Grootneus"]
[Black "milenapn"]
[Result "0-1"]
[WhiteElo "2161"]
[BlackElo "1989"]
[TimeControl "180+1"]
[EndTime "11:58:58 PDT"]
[Termination "milenapn won by resignation"]

1. e4 {[%clk 0:03:00.9]} 1... e5 {[%clk 0:02:59.3]} 2. Nf3 {[%clk 0:02:58.1]}
2... Nc6 {[%clk 0:02:59.3]} 3. Bb5 {[%clk 0:02:58.2]} 3... a6 {[%clk 0:02:59.3]}
4. Ba4 {[%clk 0:02:58.2]} 4... Nf6 {[%clk 0:02:59.5]} 5. d3 {[%clk 0:02:58.8]}
5... d6 {[%clk 0:02:59.1]} 6. c3 {[%clk 0:02:47]} 6... g6 {[%clk 0:02:59]} 7.
O-O {[%clk 0:02:43.4]} 7... Bg7 {[%clk 0:02:58]} 8. Nbd2 {[%clk 0:02:44]} 8...
O-O {[%clk 0:02:51.1]} 9. Re1 {[%clk 0:02:43.5]} 9... Nd7 {[%clk 0:02:51.1]} 10.
Nf1 {[%clk 0:02:41.6]} 10... Nc5 {[%clk 0:02:51]} 11. Bc2 {[%clk 0:02:42.2]}
11... Ne6 {[%clk 0:02:50.1]} 12. h3 {[%clk 0:02:37.2]} 12... f5 {[%clk
0:02:39.1]} 13. Ng3 {[%clk 0:02:00.7]} 13... f4 {[%clk 0:02:35.5]} 14. Ne2
{[%clk 0:01:55.8]} 14... Qf6 {[%clk 0:02:23.8]} 15. b4 {[%clk 0:01:24.7]} 15...
g5 {[%clk 0:02:22.1]} 16. Bb2 {[%clk 0:01:17.7]} 16... h5 {[%clk 0:02:13.1]} 17.
d4 {[%clk 0:01:10.8]} 17... g4 {[%clk 0:02:07.1]} 18. hxg4 {[%clk 0:01:02.7]}
18... hxg4 {[%clk 0:02:05.4]} 19. Nh2 {[%clk 0:01:03.3]} 19... Qg5 {[%clk
0:02:00.1]} 20. d5 {[%clk 0:01:00.4]} 20... f3 {[%clk 0:01:57.1]} 21. Ng3 {[%clk
0:00:59.2]} 21... Nf4 {[%clk 0:01:56.7]} 22. Bc1 {[%clk 0:00:56]} 22... Ne7
{[%clk 0:01:49.8]} 23. c4 {[%clk 0:00:45.4]} 23... Neg6 {[%clk 0:01:29]} 24. Nf5
{[%clk 0:00:35.5]} 24... Kf7 {[%clk 0:00:55.5]} 25. c5 {[%clk 0:00:29.5]} 25...
Rh8 {[%clk 0:00:54.8]} 26. Bxf4 {[%clk 0:00:13.7]} 26... Nxf4 {[%clk 0:00:53.4]}
27. cxd6 {[%clk 0:00:06.2]} 27... Qh5 {[%clk 0:00:49.6]} 28. g3 {[%clk
0:00:01.7]} 0-1

[Event "*** SCC Grand Prix: Titled Tuesday Blitz"]
[Site "Chess.com"]
[Date "2020.08.25"]
[Round "10"]
[White "PaulfromSPb"]
[Black "chenxiaoyuer"]
[Result "1-0"]
[WhiteElo "2681"]
[BlackElo "2462"]
[TimeControl "180+1"]
[EndTime "11:59:00 PDT"]
[Termination "PaulfromSPb won by checkmate"]

1. e4 {[%clk 0:03:00.3]} 1... c5 {[%clk 0:02:59.7]} 2. Ne2 {[%clk 0:03:00.1]}
2... d6 {[%clk 0:02:59.3]} 3. g3 {[%clk 0:03:00.1]} 3... g6 {[%clk 0:02:54.3]}
4. Bg2 {[%clk 0:02:59.4]} 4... Bg7 {[%clk 0:02:54.3]} 5. c3 {[%clk 0:02:59.2]}
5... Nc6 {[%clk 0:02:51.2]} 6. d4 {[%clk 0:02:59.3]} 6... cxd4 {[%clk
0:02:42.5]} 7. cxd4 {[%clk 0:03:00.2]} 7... Qb6 {[%clk 0:02:42.1]} 8. Nbc3
{[%clk 0:02:56.8]} 8... e6 {[%clk 0:02:38.2]} 9. Be3 {[%clk 0:02:54.2]} 9... Qa6
{[%clk 0:02:27.5]} 10. a4 {[%clk 0:02:46.4]} 10... Nge7 {[%clk 0:01:21.4]} 11.
O-O {[%clk 0:02:38.6]} 11... O-O {[%clk 0:01:17.6]} 12. Nb5 {[%clk 0:02:33.9]}
12... Qb6 {[%clk 0:01:13.2]} 13. d5 {[%clk 0:02:29.1]} 13... Qa5 {[%clk
0:00:57]} 14. dxc6 {[%clk 0:02:25.9]} 14... bxc6 {[%clk 0:00:57.9]} 15. Nxd6
{[%clk 0:02:17.2]} 15... Rd8 {[%clk 0:00:54.4]} 16. Nc4 {[%clk 0:02:13.1]} 16...
Rxd1 {[%clk 0:00:44]} 17. Nxa5 {[%clk 0:02:12.4]} 17... Rxa1 {[%clk 0:00:44.6]}
18. Rxa1 {[%clk 0:02:11.8]} 18... Ba6 {[%clk 0:00:45.5]} 19. Nd4 {[%clk
0:01:54.9]} 19... c5 {[%clk 0:00:39.9]} 20. Ndc6 {[%clk 0:01:52.1]} 20... Nxc6
{[%clk 0:00:37.7]} 21. Nxc6 {[%clk 0:01:53]} 21... Bxb2 {[%clk 0:00:36.7]} 22.
Rb1 {[%clk 0:01:52.9]} 22... Ba3 {[%clk 0:00:35]} 23. Rb3 {[%clk 0:01:44.5]}
23... Bb4 {[%clk 0:00:28.1]} 24. Nxb4 {[%clk 0:01:42.4]} 24... cxb4 {[%clk
0:00:29]} 25. Rxb4 {[%clk 0:01:42.9]} 25... Rd8 {[%clk 0:00:24.5]} 26. Rb1
{[%clk 0:01:41.4]} 26... h5 {[%clk 0:00:18.7]} 27. Bxa7 {[%clk 0:01:39.8]} 27...
Ra8 {[%clk 0:00:17.6]} 28. Bb6 {[%clk 0:01:38]} 28... Rb8 {[%clk 0:00:17.1]} 29.
a5 {[%clk 0:01:37.7]} 29... Bd3 {[%clk 0:00:17]} 30. Rd1 {[%clk 0:01:37.2]}
30... Bxe4 {[%clk 0:00:17.9]} 31. Bxe4 {[%clk 0:01:36.2]} 31... Rxb6 {[%clk
0:00:18.8]} 32. axb6 {[%clk 0:01:35.2]} 32... f5 {[%clk 0:00:19.7]} 33. Kg2
{[%clk 0:01:34.2]} 33... f4 {[%clk 0:00:20.6]} 34. Kh1 {[%clk 0:01:34.3]} 34...
fxg3 {[%clk 0:00:19.6]} 35. Kg2 {[%clk 0:01:34.1]} 35... gxf2 {[%clk 0:00:20.5]}
36. Kf1 {[%clk 0:01:33.7]} 36... Kg7 {[%clk 0:00:19.4]} 37. Bh1 {[%clk
0:01:33.2]} 37... Kh6 {[%clk 0:00:20.3]} 38. Ra1 {[%clk 0:01:32]} 38... Kg5
{[%clk 0:00:21.2]} 39. b7 {[%clk 0:01:31.7]} 39... Kh4 {[%clk 0:00:22]} 40. b8=B
{[%clk 0:01:30.5]} 40... g5 {[%clk 0:00:22.9]} 41. Ra5 {[%clk 0:01:16.3]} 41...
Kh3 {[%clk 0:00:22.7]} 42. Bf3 {[%clk 0:01:12.6]} 42... h4 {[%clk 0:00:19.9]}
43. Ra4 {[%clk 0:01:01.1]} 43... e5 {[%clk 0:00:19]} 44. Bxe5 {[%clk 0:00:58.1]}
44... g4 {[%clk 0:00:19.9]} 45. Bg2# {[%clk 0:00:57]} 1-0

[Event "*** SCC Grand Prix: Titled Tuesday Blitz"]
[Site "Chess.com"]
[Date "2020.08.25"]
[Round "10"]
[White "tteshan"]
[Black "ErikBlomqvist"]
[Result "1-0"]
[WhiteElo "2379"]
[BlackElo "2492"]
[TimeControl "180+1"]
[EndTime "11:59:01 PDT"]
[Termination "tteshan won by resignation"]

1. d4 {[%clk 0:03:00.9]} 1... Nf6 {[%clk 0:02:58]} 2. c4 {[%clk 0:02:57.9]} 2...
e6 {[%clk 0:02:56.9]} 3. Nc3 {[%clk 0:02:56.9]} 3... Bb4 {[%clk 0:02:56.1]} 4.
e3 {[%clk 0:02:53]} 4... O-O {[%clk 0:02:50.8]} 5. Bd3 {[%clk 0:02:52.2]} 5...
d5 {[%clk 0:02:50.1]} 6. cxd5 {[%clk 0:02:53.1]} 6... exd5 {[%clk 0:02:50.9]} 7.
Ne2 {[%clk 0:02:52.8]} 7... a6 {[%clk 0:02:48.4]} 8. O-O {[%clk 0:02:52.4]} 8...
Bd6 {[%clk 0:02:48.3]} 9. Qc2 {[%clk 0:02:45.9]} 9... Re8 {[%clk 0:02:41.8]} 10.
f3 {[%clk 0:02:35.4]} 10... c5 {[%clk 0:02:39.3]} 11. Bd2 {[%clk 0:02:26.7]}
11... Nc6 {[%clk 0:02:36.3]} 12. a3 {[%clk 0:02:20.2]} 12... c4 {[%clk
0:02:11.8]} 13. Bf5 {[%clk 0:02:19.3]} 13... Bxf5 {[%clk 0:02:03.5]} 14. Qxf5
{[%clk 0:02:20.2]} 14... Bc7 {[%clk 0:01:51.5]} 15. Rad1 {[%clk 0:02:14]} 15...
Qd6 {[%clk 0:01:36.9]} 16. Ng3 {[%clk 0:02:09.2]} 16... Re6 {[%clk 0:01:26.6]}
17. Bc1 {[%clk 0:01:37.6]} 17... Rae8 {[%clk 0:01:08.3]} 18. e4 {[%clk
0:01:30.9]} 18... dxe4 {[%clk 0:00:59.7]} 19. fxe4 {[%clk 0:01:18.2]} 19... Nxd4
{[%clk 0:00:59.7]} 20. Qf2 {[%clk 0:01:08.8]} 20... Bb6 {[%clk 0:00:16.9]} 21.
Be3 {[%clk 0:01:03.8]} 21... Ng4 {[%clk 0:00:17.1]} 22. Qxf7+ {[%clk 0:01:03.4]}
22... Kh8 {[%clk 0:00:17.6]} 23. Bxd4 {[%clk 0:00:52.6]} 23... Bxd4+ {[%clk
0:00:17.5]} 24. Kh1 {[%clk 0:00:51.7]} 24... g6 {[%clk 0:00:04.3]} 25. Nce2
{[%clk 0:00:39.7]} 25... Rf6 {[%clk 0:00:01.8]} 26. Qxe8+ {[%clk 0:00:35.4]} 1-0

[Event "*** SCC Grand Prix: Titled Tuesday Blitz"]
[Site "Chess.com"]
[Date "2020.08.25"]
[Round "10"]
[White "Vsevolod_Ovchinnikov"]
[Black "anon102030"]
[Result "0-1"]
[WhiteElo "2464"]
[BlackElo "2742"]
[TimeControl "180+1"]
[EndTime "11:59:07 PDT"]
[Termination "anon102030 won on time"]

1. d4 {[%clk 0:03:00.9]} 1... Nf6 {[%clk 0:02:54.6]} 2. c4 {[%clk 0:03:01.1]}
2... e5 {[%clk 0:02:54.6]} 3. dxe5 {[%clk 0:03:00.9]} 3... Ng4 {[%clk
0:02:54.2]} 4. Bf4 {[%clk 0:03:01.5]} 4... g5 {[%clk 0:02:50.8]} 5. Bg3 {[%clk
0:03:01.2]} 5... Bg7 {[%clk 0:02:51.3]} 6. Nf3 {[%clk 0:03:00.9]} 6... Nc6
{[%clk 0:02:49.3]} 7. Nc3 {[%clk 0:03:00.3]} 7... Ngxe5 {[%clk 0:02:48.3]} 8.
Nxe5 {[%clk 0:02:58.8]} 8... Nxe5 {[%clk 0:02:49.2]} 9. e3 {[%clk 0:02:57.4]}
9... d6 {[%clk 0:02:48]} 10. Be2 {[%clk 0:02:56.1]} 10... Be6 {[%clk 0:02:47.9]}
11. Rc1 {[%clk 0:02:53]} 11... Qd7 {[%clk 0:02:45.4]} 12. Nb5 {[%clk 0:02:46.6]}
12... f5 {[%clk 0:02:38.5]} 13. h4 {[%clk 0:02:36.1]} 13... f4 {[%clk
0:02:21.2]} 14. exf4 {[%clk 0:02:32.3]} 14... gxf4 {[%clk 0:02:22.1]} 15. Bxf4
{[%clk 0:02:31.2]} 15... O-O {[%clk 0:02:22.4]} 16. Bg3 {[%clk 0:02:24.8]} 16...
Nxc4 {[%clk 0:02:12.3]} 17. Rxc4 {[%clk 0:02:08.7]} 17... Qxb5 {[%clk
0:02:07.3]} 18. Re4 {[%clk 0:01:37.4]} 18... Qa5+ {[%clk 0:02:04.1]} 19. b4
{[%clk 0:01:28.7]} 19... Bc3+ {[%clk 0:01:53.8]} 20. Kf1 {[%clk 0:01:28.6]}
20... Qxa2 {[%clk 0:01:50.7]} 21. Qc1 {[%clk 0:01:03.5]} 21... Bd2 {[%clk
0:01:29]} 22. Bc4 {[%clk 0:00:22.9]} 22... Bxc1 {[%clk 0:01:12]} 23. Bxe6+
{[%clk 0:00:22.3]} 23... Qxe6 {[%clk 0:01:12.8]} 24. Rxe6 {[%clk 0:00:23.2]}
24... Rae8 {[%clk 0:01:09]} 25. Rxe8 {[%clk 0:00:20.5]} 25... Rxe8 {[%clk
0:01:09.9]} 26. h5 {[%clk 0:00:20.5]} 26... Bd2 {[%clk 0:01:08]} 27. f3 {[%clk
0:00:17.9]} 27... Bxb4 {[%clk 0:01:08.2]} 28. Rh4 {[%clk 0:00:18]} 28... a5
{[%clk 0:01:02.3]} 29. h6 {[%clk 0:00:08.7]} 29... Re6 {[%clk 0:00:59.5]} 30.
Bf2 {[%clk 0:00:04.2]} 30... Bd2 {[%clk 0:00:53.7]} 31. f4 {[%clk 0:00:03.4]}
31... b5 {[%clk 0:00:48.8]} 0-1